[Event "44th Chess Olympiad Open 2022"]
[Site "Chennai"]
[Date "2022.08.02"]
[Round "5.27"]
[White "Shishkov, Andrei"]
[Black "Onyshchuk, Volodymyr"]
[Result "0-1"]
[WhiteElo "2366"]
[BlackElo "2612"]
[Annotator "TA"]
[PlyCount "106"]
[EventDate "2022.??.??"]
[TimeControl "60"]

{[%evp 15,106,26,27,32,29,17,21,0,15,7,30,25,37,45,47,37,38,46,78,37,27,0,25,
13,13,-19,-13,-9,-5,-13,-9,-25,-37,-62,-59,-64,-60,-83,-83,-83,-83,-83,-83,-76,
-96,-101,-97,-96,-77,-93,-84,-99,-90,-104,-97,-97,-97,-139,-106,-112,-114,-157,
-167,-170,-156,-181,-170,-181,-179,-345,-314,-385,-377,-387,-377,-370,-380,
-485,-516,-569,-556,-610,-610,-767,-748,-939,-2194,-3078,-2796,-2537,-2061,
-29984,-29980]} 1. d4 {[%emt 0:00:01]} d6 {[%emt 0:00:25]} 2. e4 {[%emt 0:00:
00]} Nf6 {[%emt 0:00:09]} 3. f3 {[%emt 0:00:06]} e5 {[%emt 0:00:24]} 4. dxe5 {
[%emt 0:00:31]} dxe5 {[%emt 0:00:05]} 5. Qxd8+ {[%emt 0:00:03]} Kxd8 {[%emt 0:
00:00]} 6. Bc4 {[%emt 0:00:02]} Ke8 {[%emt 0:00:07]} 7. Be3 {[%emt 0:00:10]}
Nbd7 {[%emt 0:00:08]} 8. Nd2 {[%emt 0:00:21]} Bc5 {[%emt 0:00:34]} 9. Nf1 {
[%emt 0:00:32] B07: Pirc Defence: Miscellaneous Systems.} Ke7 {[%emt 0:02:00]}
10. Ne2 {[%emt 0:05:05][%cal Yg1e2,Ye2c1,Yc1d3] [#]} (10. Rd1 {seems wilder.}
a5 11. Ne2 b6 12. Nc1) 10... Ne8 $146 {[%emt 0:03:26]} ({Predecessor:} 10... c6
11. a4 a5 12. O-O-O Bxe3+ 13. Nxe3 Nc5 14. b3 Ne8 15. Rd2 Nd6 16. Rhd1 Rd8 {
1-0 (42) Hambleton,A (2454)-Kushko,D (2302) Chess.com INT 2022}) 11. a3 {
[%emt 0:25:22] The position is equal.} Nd6 {[%emt 0:00:53]} 12. Ba2 {[%emt 0:
00:15]} a5 {[%emt 0:12:57]} 13. Nc1 {[%emt 0:05:15]} f6 {[%emt 0:06:59]} 14.
Nd3 {[%emt 0:00:32]} Bxe3 {[%emt 0:02:01]} 15. Nxe3 {[%emt 0:00:29]} c6 {
[%emt 0:00:47]} 16. O-O-O {[%emt 0:07:19]} Nf8 {[%emt 0:00:00]} 17. f4 {
[%emt 0:14:54]} Ng6 {[%emt 0:08:41]} 18. Rhe1 {[%emt 0:04:18]} Rd8 {[%emt 0:06:
16]} 19. f5 {[%emt 0:12:42]} (19. g3 $5 {[%cal Rd3f2]}) 19... Nf8 {[%emt 0:04:
14]} 20. Nc5 {[%emt 0:04:47]} b6 {[%emt 0:16:11]} 21. Na4 {[%emt 0:00:00]} Nd7
{[%emt 0:10:23] With the idea ...b5.} 22. Be6 {[%emt 0:00:34]} Rb8 {[%emt 0:00:
06]} ({Don't take} 22... Nxe4 23. Nc4 b5 24. Rxe4 $14) 23. Bxd7 {[%emt 0:01:27]
} Bxd7 {[%emt 0:01:23][%cal Yc8d7,Yd7e8,Ye8f7]} 24. Nc3 {[%emt 0:01:20]} b5 {
[%emt 0:02:23]} 25. b4 {[%emt 0:09:00]} Be8 {[%emt 0:00:00]} 26. Rd2 {[%emt 0:
01:59]} Nb7 {[%emt 0:00:38]} 27. Red1 {[%emt 0:00:29]} Rxd2 {[%emt 0:00:12]}
28. Rxd2 {[%emt 0:00:03]} Bf7 {[%emt 0:00:38]} 29. g4 {[%emt 0:03:42]} h5 {
[%emt 0:01:37]} 30. Rg2 {[%emt 0:00:40]} hxg4 {[%emt 0:00:00]} 31. Nxg4 {
[%emt 0:00:20]} Ra8 {[%emt 0:05:11]} 32. Ne3 {[%emt 0:02:07]} axb4 {[%emt 0:01:
31]} 33. axb4 {[%emt 0:00:01]} Ra1+ {[%emt 0:00:07]} 34. Kb2 {[%emt 0:00:19]}
Re1 {[%emt 0:00:38]} 35. Re2 {[%emt 0:00:05]} Rh1 {[%emt 0:00:00]} 36. Rg2 {
[%emt 0:00:17]} Nd6 {[%emt 0:00:47] ...Re1 is the strong threat.} 37. Rxg7 {
[%emt 0:02:14]} Re1 {[%emt 0:00:30]} 38. Ned1 {[%emt 0:00:49]} Nxe4 {[%emt 0:
00:14]} 39. Nxe4 {[%emt 0:00:41]} Rxe4 $17 {[%emt 0:00:04] Endgame KRB-KRN} 40.
Kc3 {[%emt 0:00:28]} Rc4+ {[%emt 0:01:13]} 41. Kd2 {[%emt 0:30:15]} Rxb4 {
[%emt 0:30:11] Strongly threatening ...Rf4.} 42. Ne3 $2 {[%emt 0:00:27] [#]} (
42. Rh7 {was forced.}) 42... Rd4+ {[%emt 0:07:03]} 43. Ke2 {[%emt 0:00:27]} Rh4
{[%emt 0:00:13] Against Rh7} 44. Rg2 {[%emt 0:00:15]} b4 {[%emt 0:00:46][%cal
Yb5b4,Yb4b3]} 45. Kd2 {[%emt 0:00:00]} c5 {[%emt 0:00:00][%cal Yc6c5,Yc5c4,
Yc4d3]} 46. c3 {[%emt 0:00:00]} b3 {[%emt 0:00:00]} 47. Kc1 {[%emt 0:00:00]}
Rh3 {[%emt 0:00:00]} 48. Re2 {[%emt 0:00:00]} c4 {[%emt 0:00:00]} 49. Kb2 {
[%emt 0:00:00]} Bh5 {[%emt 0:00:00] Inhibits Ng4.} 50. Nd5+ {[%emt 0:00:00]}
Kd6 {[%emt 0:00:00]} 51. Rd2 {[%emt 0:00:00]} Rd3 {[%emt 0:00:00]} 52. Rxd3 {
[%emt 0:00:00]} cxd3 {[%emt 0:00:00]} 53. Nxf6 {[%emt 0:00:00]} Bf3 {[%emt 0:
00:00] Weighted Error Value: White=0.41/ Black=0.04 (flawless)} 0-1

[Event "44th Chess Olympiad Open 2022"]
[Site "Chennai"]
[Date "2022.08.02"]
[Round "5.28"]
[White "Erdos, Viktor"]
[Black "Guzman, Christopher"]
[Result "1-0"]
[WhiteElo "2586"]
[BlackElo "2243"]
[Annotator "TA"]
[PlyCount "103"]
[EventDate "2022.??.??"]
[TimeControl "60"]

{[%evp 9,103,0,21,21,10,18,13,17,12,2,8,11,12,14,37,16,15,16,16,12,16,11,23,0,
25,26,66,67,67,71,73,72,65,68,60,54,51,40,64,53,66,76,66,73,72,62,85,45,43,44,
43,43,63,61,54,41,77,77,114,107,53,118,195,179,207,184,179,186,202,200,193,148,
181,156,172,169,247,277,343,343,364,400,391,343,931,889,29961,29965,29988,
29989,29989,29990,29990,29991,29995,29992]} 1. d4 {[%emt 0:00:05]} Nf6 {
[%emt 0:00:31]} 2. c4 {[%emt 0:00:05]} e6 {[%emt 0:00:31]} 3. Bf4 {[%emt 0:00:
00]} b6 {[%emt 0:04:11]} 4. a3 {[%emt 0:00:12]} Bb7 {[%emt 0:01:12]} 5. Nc3 {
[%emt 0:00:06]} d5 {[%emt 0:00:33]} (5... Nh5 $5 {[%cal Rh5f4]} 6. Bc1 Nf6 $11)
6. cxd5 {[%emt 0:00:09] A50: Queen's Fianchetto Defence (1 d4 Nf6 2 c4 b6).}
Nxd5 {[%emt 0:01:06]} 7. Nxd5 {[%emt 0:00:26] [#]} exd5 $146 {[%emt 0:00:24]} (
{Predecessor:} 7... Qxd5 8. Nf3 c5 9. e3 Nd7 10. Rc1 Be7 11. Bc4 Qf5 12. Bb5
O-O-O 13. Qa4 e5 14. Nxe5 Nxe5 15. Bxe5 Bf6 16. dxc5 Rd1+ 17. Rxd1 Qxe5 18. c6
{1-0 (18) Yang,K (2481)-Potkin,V (2571) Chess.com INT 2022}) 8. Rc1 {[%emt 0:
00:00] The position is equal.} Bd6 {[%emt 0:11:33]} (8... c5 {feels hotter.} 9.
dxc5 bxc5 10. e4 Be7) 9. Bxd6 {[%emt 0:00:53]} Qxd6 {[%emt 0:00:10]} 10. Qc2 {
[%emt 0:00:20]} c6 {[%emt 0:00:08]} 11. e3 {[%emt 0:00:27]} Qg6 {[%emt 0:12:35]
} 12. Qd1 {[%emt 0:19:29]} O-O {[%emt 0:07:38][%cal Yc6c5]} 13. Nf3 {[%emt 0:
00:00]} Nd7 {[%emt 0:00:09]} 14. Bd3 {[%emt 0:00:47]} Qd6 {[%emt 0:16:04]} ({
Don't take} 14... Qxg2 {[#]} 15. Bxh7+ $1 (15. Rg1 Qh3 $16) 15... Kh8 16. Rg1
$16) 15. Qc2 {[%emt 0:03:09]} h6 {[%emt 0:10:28]} 16. Bh7+ {[%emt 0:00:33]} Kh8
{[%emt 0:00:14] [#] aiming for ...g6.} 17. Bf5 {[%emt 0:00:06]} Rfc8 {[%emt 0:
00:00]} 18. Ne5 {[%emt 0:25:14]} Nxe5 {[%emt 0:00:22]} 19. dxe5 {[%emt 0:00:16]
} Qxe5 {[%emt 0:00:04]} 20. Bxc8 {[%emt 0:00:04]} Rxc8 {[%emt 0:00:16]} 21. O-O
{[%emt 0:00:32]} c5 {[%emt 0:00:39]} 22. Rfe1 {[%emt 0:00:25]} Qg5 {[%emt 0:00:
00]} 23. f3 {[%emt 0:05:16]} Rc6 {[%emt 0:05:16]} 24. Qf2 {[%emt 0:00:00]} a5 {
[%emt 0:01:40]} 25. b4 {[%emt 0:13:37]} axb4 {[%emt 0:12:39]} 26. axb4 {
[%emt 0:00:00]} c4 {[%emt 0:12:36]} 27. Rcd1 {[%emt 0:03:17][%cal Yc1d1,Yd1d4,
Yd4g4]} Re6 {[%emt 0:00:00] Inhibits e4.} 28. Rd4 {[%emt 0:00:55]} Qe7 {
[%emt 0:00:00]} 29. Qd2 {[%emt 0:00:34]} b5 {[%emt 0:00:00]} 30. Qc3 {[%emt 0:
00:00]} Kg8 {[%emt 0:00:00]} 31. Rg4 {[%emt 0:01:31][%csl Gg4][%cal Rc3g7]} f6
{[%emt 0:03:28]} 32. Rd4 {[%emt 0:02:24]} Kh8 {[%emt 0:02:30]} 33. Kf2 {
[%emt 0:01:15]} Ra6 {[%emt 0:05:09]} 34. Ra1 {[%emt 0:00:41] Against Ra2+} Rxa1
{[%emt 0:00:00]} 35. Qxa1 $16 {[%emt 0:00:35] Endgame KQR-KQB} Bc6 {[%emt 0:00:
00]} (35... Qxb4 $16 36. Qa7 Bc6) 36. Qc3 Qe5 {[%emt 0:01:00]} 37. h4 {[%emt 0:
06:36]} Kh7 {[%emt 0:03:05]} 38. Qa1 {[%emt 0:00:49]} Qe7 {[%emt 0:00:00]} 39.
Qa5 Qb7 {[%emt 0:02:15]} 40. Rd2 {[%emt 0:00:35]} Qb8 {[%emt 0:00:00]} 41. Qa1
{[%emt 0:01:01]} Qd6 {[%emt 0:00:00]} 42. Qc3 Qe7 {[%emt 0:06:46]} (42... Bd7 {
was necessary.}) 43. Ra2 $18 {[%emt 0:11:04]} f5 {[%emt 0:10:19]} 44. Qd4 {
[%emt 0:06:42]} Qxb4 {[%emt 0:00:00]} 45. Ra7 {[%emt 0:10:43][%csl Ga7][%cal
Rd4g7]} Qf8 {[%emt 0:00:00]} 46. Rc7 {[%emt 0:00:08]} Ba8 {[%emt 0:00:00]} (
46... Be8 47. Qxd5 Qf6) 47. Qe5 {[%emt 0:05:03]} f4 {[%emt 0:00:00]} 48. exf4 {
[%emt 0:00:00][%cal Ye3f4,Yf4f5] White mates.} b4 {[%emt 0:00:00]} 49. f5 {
[%emt 0:00:00]} Kh8 {[%emt 0:00:00]} 50. Qe6 {[%emt 0:00:00]} Bb7 {[%emt 0:00:
22]} 51. Rxb7 {[%emt 0:00:07]} Qd8 {[%emt 0:00:00]} 52. Re7 {[%emt 0:00:34]
Weighted Error Value: White=0.06 (flawless) /Black=0.28 (precise)} 1-0

[Event "44th Chess Olympiad Open 2022"]
[Site "Chennai"]
[Date "2022.08.02"]
[Round "5.28"]
[White "Kantor, Gergely"]
[Black "Camacho Campusano, David Daniel"]
[Result "1/2-1/2"]
[WhiteElo "2582"]
[BlackElo "2221"]
[Annotator "TA"]
[PlyCount "65"]
[EventDate "2022.??.??"]
[TimeControl "60"]

{[%evp 14,65,50,42,64,25,38,33,40,28,59,42,37,43,50,37,46,29,44,55,65,41,64,45,
51,56,59,42,41,31,58,16,22,3,4,3,4,0,0,0,0,0,0,0,0,0,0,0,0,0,0,0,0,0]} 1. d4 {
[%emt 0:00:03]} Nf6 {[%emt 0:00:15]} 2. c4 {[%emt 0:00:03]} c5 {[%emt 0:00:15]}
3. d5 {[%emt 0:00:07]} b5 {[%emt 0:00:25]} 4. cxb5 {[%emt 0:00:28]} a6 {
[%emt 0:00:06]} 5. e3 {[%emt 0:00:18][%cal Ye2e3,Ye3e4,Ye4d5,Yd5d6]} g6 {
[%emt 0:00:20]} 6. Nc3 {[%emt 0:00:55]} Bg7 {[%emt 0:00:27]} 7. a4 {[%emt 0:01:
37]} O-O {[%emt 0:01:00]} 8. e4 {[%emt 0:01:01]} e6 {[%emt 0:02:25] A57: Benko/
Volga Gambit.} 9. Bc4 {[%emt 0:05:04]} axb5 {[%emt 0:03:28]} 10. Bxb5 {[%emt 0:
00:40]} Bb7 {[%emt 0:06:14] White is slightly better.} 11. Nge2 {[%emt 0:06:22]
} Na6 {[%emt 0:03:30]} 12. O-O {[%emt 0:05:53]} exd5 {[%emt 0:00:00]} 13. exd5
{[%emt 0:02:25]} Nb4 {[%emt 0:06:44]} 14. d6 {[%emt 0:07:17] [#]} Re8 $146 {
[%emt 0:04:04][%cal Yf8e8,Ye8e4,Ye4d4,Yd4d5,Yd5f5]} ({Predecessor:} 14... Qb6
15. Bf4 Bc6 16. Rc1 Nfd5 17. Qd2 Nxf4 18. Nxf4 Bxb5 19. axb5 Rfe8 20. h4 Bd4 {
1-0 (32) Carlsen,J (1486)-Ederer,K (2108) LSS email 2020}) 15. Bg5 {[%emt 0:08:
07]} h6 {[%emt 0:01:58]} 16. Bh4 {[%emt 0:04:11]} Qb6 {[%emt 0:11:24][%cal
Yc5c4]} 17. Qd2 {[%emt 0:08:15]} Ne4 {[%emt 0:08:29]} 18. Nxe4 {[%emt 0:01:25]}
Rxe4 {[%emt 0:00:14]} 19. Bg3 {[%emt 0:06:49]} Bc6 {[%emt 0:01:33]} 20. Nc3 {
[%emt 0:05:53]} (20. f3 $5 {[%cal Rf3e4]} Ree8 21. Nc3 $14) 20... Rd4 {[%emt 0:
04:36]} 21. Qe2 {[%emt 0:02:08][%cal Ya4a5]} Nd5 {[%emt 0:14:06]} 22. Nxd5 {
[%emt 0:19:33]} Rxd5 {[%emt 0:00:00] The position is equal.} 23. Rfe1 {[%emt 0:
08:01]} Bxb5 {[%emt 0:02:01]} 24. axb5 {[%emt 0:00:00]} Rb8 {[%emt 0:01:55]}
25. Qf3 {[%emt 0:02:39]} Rf5 {[%emt 0:01:43]} 26. Qb3 {[%emt 0:00:07]} Bd4 {
[%emt 0:02:02]} 27. Re2 {[%emt 0:03:53]} ({Reject} 27. Re7 c4 28. Qxc4 Bxf2+
29. Bxf2 Qxf2+ 30. Kh1 Qxb2 $15) 27... Kg7 {[%emt 0:00:00]} 28. h4 {[%emt 0:00:
17]} Qxb5 {[%emt 0:01:03]} 29. Qxb5 {[%emt 0:00:03]} Rxb5 {[%emt 0:00:11]} 30.
Ra7 {[%emt 0:00:06]} Rxb2 {[%emt 0:00:14]} 31. Rxb2 {[%emt 0:01:01]} Bxb2 {
[%emt 0:00:03]} 32. Rxd7 {[%emt 0:00:22]} Be5 {[%emt 0:00:00]} 33. Bxe5+ {
[%emt 0:00:35] Weighted Error Value: White=0.08 (flawless) / Black=0.07 
(flawless)} 1/2-1/2

[Event "44th Chess Olympiad Open 2022"]
[Site "Chennai"]
[Date "2022.08.02"]
[Round "5.28"]
[White "Mazara Ruiz, Adan Manuel"]
[Black "Acs, Peter"]
[Result "0-1"]
[WhiteElo "2286"]
[BlackElo "2575"]
[Annotator "TA"]
[PlyCount "110"]
[EventDate "2022.??.??"]
[TimeControl "60"]

{[%evp 11,110,23,31,20,48,54,59,39,43,31,56,34,35,36,38,24,35,7,18,14,33,-61,
20,15,15,25,29,0,0,0,0,0,0,0,18,19,16,22,368,86,111,0,14,0,0,-10,-12,-47,-46,
-41,-38,-33,-38,-49,0,-39,-39,-39,-39,-39,-39,-36,-14,-35,-37,-97,-97,-97,-97,
-127,-130,-126,-127,-245,-248,-243,-234,-227,-185,-637,-605,-673,-666,-576,
-254,-569,-560,-4133,-4133,-2424,-2166,-2302,-2352,-2646,-1692,-1387,-1373,
-1312,-1287,-555,-442]} 1. e4 {[%emt 0:00:04]} c5 {[%emt 0:00:20]} 2. Nf3 {
[%emt 0:00:07]} d6 {[%emt 0:00:42]} 3. Bb5+ {[%emt 0:00:09]} Nd7 {[%emt 0:00:
00]} 4. c3 {[%emt 0:00:03]} Ngf6 {[%emt 0:03:19]} 5. Qe2 {[%emt 0:00:04]} a6 {
[%emt 0:07:15]} 6. Ba4 {[%emt 0:00:17][%cal Yb5a4,Ya4c2,Yc2d3]} Qc7 {[%emt 0:
14:40]} 7. O-O {[%emt 0:02:49] B51: Sicilian: Moscow Variation (3 Bb5+)
without 3...Bd7.} c4 {[%emt 0:07:21]} 8. Bc2 {[%emt 0:00:03]} g6 $5 {[%emt 0:
00:00] An interesting side line.} 9. a4 {[%emt 0:13:51] White is slightly
better.} Ne5 {[%emt 0:11:29]} 10. Nxe5 {[%emt 0:02:25]} dxe5 {[%emt 0:00:00] 
[#]} 11. Na3 $146 {[%emt 0:00:12][%cal Yb1a3,Ya3c2,Yc2b4]} ({Predecessor:} 11.
d4 cxd3 12. Bxd3 Be6 13. c4 Rc8 14. b3 Bg7 15. a5 O-O 16. Nc3 Nh5 17. g3 {
1-0 (49) Cvorovic,D (2435)-Grosar,A (2435) Solin 1994}) 11... Be6 {[%emt 0:00:
15]} 12. d4 {[%emt 0:04:07]} cxd3 {[%emt 0:00:25]} 13. Bxd3 {[%emt 0:00:04]}
Rc8 {[%emt 0:01:25]} 14. Nc2 {[%emt 0:12:36]} h5 {[%emt 0:00:00][%cal Yh7h5,
Yh5h4,Yh4h3]} 15. Nb4 {[%emt 0:08:04]} h4 {[%emt 0:00:00]} 16. f4 {[%emt 0:17:
41]} (16. a5 $14) 16... Bg7 {[%emt 0:00:00]} (16... Bh6 $15 17. f5 gxf5 18.
exf5 Qc5+ 19. Kh1 Bb3 20. Bxh6 Rxh6) 17. f5 $11 {[%emt 0:00:00]} gxf5 {[%emt 0:
01:32]} 18. exf5 {[%emt 0:00:03]} Bd7 {[%emt 0:00:00]} 19. a5 {[%emt 0:08:37]}
h3 {[%emt 0:00:00] aiming for ...hxg2.} 20. g3 {[%emt 0:00:00]} Bh6 $1 {
[%emt 0:11:50] Inhibits Bg5.} 21. Bxh6 {[%emt 0:07:02]} Rxh6 {[%emt 0:00:00]}
22. Rae1 {[%emt 0:01:09]} Qc5+ {[%emt 0:00:00]} 23. Kh1 $1 {[%emt 0:04:29]}
Qxa5 {[%emt 0:00:00]} 24. Qxe5 {[%emt 0:00:41][%csl Ge1][%cal Re5e7]} Qd8 {
[%emt 0:01:47] [#]} (24... Qxe5 $11 25. Rxe5 Bc6+ 26. Nxc6 Rxc6) 25. Qf4 $2 {
[%emt 0:00:00]} (25. g4 $1 $18 {[%cal Rg4g5] and the rest is easy.} a5 26. g5
axb4 27. gxh6 Bc6+ 28. Kg1 Qb6+ 29. Qe3 Qxe3+ 30. Rxe3) 25... Rh8 {[%emt 0:05:
37] [#]} 26. Qe5 {[%emt 0:02:59]} (26. g4 $1 $16 {[%cal Rg4g5]} Rh4 27. Be2 (
27. Qg5 $2 Rxg4 28. Qxf6 Bc6+ 29. Nxc6 Qd5+ 30. Re4 Rxe4 $19)) 26... Kf8 {
[%emt 0:00:00]} 27. Be4 {[%emt 0:04:50]} Qc7 {[%emt 0:00:00]} 28. Qxc7 {
[%emt 0:00:00]} Rxc7 {[%emt 0:00:00]} 29. Nd5 {[%emt 0:00:00]} Nxd5 {[%emt 0:
00:00]} 30. Bxd5 {[%emt 0:00:00]} Rh6 {[%emt 0:00:00]} 31. Kg1 {[%emt 0:00:00]}
Rb6 {[%emt 0:01:41]} 32. Rf2 {[%emt 0:00:00]} Rb5 {[%emt 0:00:00]} (32... Rc5
$15 33. Be4 Re5) 33. c4 {[%emt 0:00:00]} Rb4 {[%emt 0:01:39]} 34. Re3 {[%emt 0:
01:17]} Bc6 {[%emt 0:00:00]} 35. Bxc6 {[%emt 0:01:07]} Rxc6 $15 {[%emt 0:00:00]
Endgame KRR-KRR} 36. b3 {[%emt 0:00:15]} a5 {[%emt 0:02:55]} 37. Rfe2 {[%emt 0:
01:02]} Rcb6 {[%emt 0:00:00]} 38. Re5 {[%emt 0:08:04]} ({Of course not} 38.
Rxe7 Rxb3 39. c5 Rc6 $17) ({White should play} 38. Ra2 $1 $15) 38... Rxb3 $17 {
[%emt 0:00:00] And now ...a4 would win.} 39. Rxa5 {[%emt 0:00:00]} Rf3 {
[%emt 0:00:00] ( -> ...Rb1+)} 40. Ra1 {[%emt 0:00:00] Against Rb1+} Rxf5 {
[%emt 0:00:54]} 41. Rae1 {[%emt 0:30:24]} e6 {[%emt 0:30:56]} 42. Rf1 {[%emt 0:
00:46]} (42. Re4 $17) 42... Rxf1+ $19 {[%emt 0:00:00]} 43. Kxf1 {[%emt 0:00:00]
KR-KR} Rb1+ {[%emt 0:00:00]} 44. Kf2 {[%emt 0:00:00]} Rc1 {[%emt 0:00:00]} 45.
Rb2 $2 {[%emt 0:00:00]} (45. Re4) 45... Rxc4 {[%emt 0:00:00]} 46. Rxb7 {
[%emt 0:00:00]} Rc2+ {[%emt 0:00:00]} 47. Kg1 {[%emt 0:00:00]} Rc1+ {[%emt 0:
00:00]} 48. Kf2 {[%emt 0:00:00]} Rh1 {[%emt 0:00:00] Black is clearly winning.}
49. g4 {[%emt 0:00:00]} Rxh2+ {[%emt 0:00:00]} 50. Kg3 {[%emt 0:00:00]} Rh1 {
[%emt 0:00:00]} 51. Rb4 {[%emt 0:00:00]} Kg7 {[%emt 0:00:00]} 52. Ra4 {[%emt 0:
00:00]} Kf6 {[%emt 0:00:00] White must now prevent ...e5.} 53. Rf4+ {[%emt 0:
00:00]} Kg6 {[%emt 0:02:32]} 54. Re4 {[%emt 0:00:00]} Kg5 {[%emt 0:00:00]} ({
Stronger than} 54... h2 55. Kg2 Rc1 56. Kxh2 $17) 55. Re5+ {[%emt 0:00:00]} Kf6
{[%emt 0:00:00] Quite a comeback for Black. Weighted Error Value: White=0.56/
Black=0.28 (precise)} 0-1

[Event "44th Chess Olympiad Open 2022"]
[Site "Chennai"]
[Date "2022.08.02"]
[Round "5.28"]
[White "Arvelo Leo, Gian Carlo"]
[Black "Berkes, Ferenc"]
[Result "0-1"]
[WhiteElo "2176"]
[BlackElo "2649"]
[Annotator "TA"]
[PlyCount "64"]
[EventDate "2022.??.??"]
[TimeControl "60"]

{[%evp 23,64,10,31,12,21,0,0,0,0,0,0,-10,-6,-6,-7,0,-4,-47,-4,-7,0,-179,-173,
-205,-180,-182,-189,-2402,-2281,-1937,-1333,-5381,-5393,-3803,-5154,-3445,
-2600,-2205,-2205,-1557,-1469,-1282,-1156]} 1. Nf3 {[%emt 0:00:05] ChessBase II
} d5 {[%emt 0:00:21]} 2. g3 {[%emt 0:02:39]} g6 {[%emt 0:02:05]} 3. Bg2 {
[%emt 0:00:17]} Bg7 {[%emt 0:00:07]} 4. d4 {[%emt 0:00:34]} Nf6 {[%emt 0:03:05]
} 5. O-O {[%emt 0:00:25]} O-O {[%emt 0:00:16]} 6. c4 {[%emt 0:01:28]} c6 {
[%emt 0:00:25]} 7. cxd5 {[%emt 0:00:12]} cxd5 {[%emt 0:00:06]} 8. Nc3 {[%emt 0:
00:00]} Nc6 {[%emt 0:00:15]} 9. Ne5 {[%emt 0:00:32]} e6 {[%emt 0:00:16]} 10.
Nxc6 {[%emt 0:00:40]} bxc6 {[%emt 0:00:06]} 11. Na4 {[%emt 0:03:39]} Nd7 {
[%emt 0:04:14]} 12. Bf4 {[%emt 0:06:43]} Ba6 {[%emt 0:01:54]} 13. Qd2 {[%emt 0:
00:00] [#] D79: Fianchetto Grünfeld: Symmetrical Variation (6 0-0 c6 7 cxd5
cxd5).} Rc8 $146 {[%emt 0:00:49]} ({Predecessor:} 13... Bb5 14. Nc3 Qb6 15.
Rfd1 Rfc8 16. Rac1 a5 17. Rc2 a4 18. Nxb5 cxb5 19. e3 h6 20. Rdc1 Rxc2 21. Rxc2
{½-½ (36) Mastrovasilis,D (2584)-Cmilyte,V (2526) Aix les Bains 2011 CBM 142
Extra [ChessBase II]}) 14. Rfe1 {[%emt 0:02:09]} c5 {[%emt 0:19:34]} 15. Bd6 {
[%emt 0:23:31][%csl Yc5,Yf8] The position is equal.} Bxd4 {[%emt 0:01:43]} 16.
Bxf8 {[%emt 0:00:11]} Qxf8 {[%emt 0:00:06]} 17. e3 {[%emt 0:08:06]} Bg7 {
[%emt 0:00:25]} 18. Qa5 {[%emt 0:01:33]} Qd6 {[%emt 0:01:14]} 19. Rac1 {
[%emt 0:01:33]} c4 {[%emt 0:04:37]} 20. Bf1 {[%emt 0:14:34]} (20. Red1 $5 {
[%cal Rg2d5]}) 20... Qc6 {[%emt 0:10:45] Black has compensation.} (20... Ne5 $5
{[%cal Re5f3]} 21. Be2 Qc6 $15) 21. b3 {[%emt 0:07:22]} Ne5 {[%emt 0:02:31]
[%cal Yd7e5,Ye5f3,Yf3h2]} 22. Be2 {[%emt 0:01:09] [#] Against Nf3+} (22. Red1
$1 $11 {and White has nothing to worry.}) 22... Bb7 $1 $19 {[%emt 0:11:40]
[%cal Yd5d4] And now ...d4! would win.} 23. f3 {[%emt 0:00:00]} d4 {[%emt 0:00:
00]} 24. Rf1 {[%emt 0:05:33]} d3 $36 {[%emt 0:05:50] Deflection. Black has
strong initiative.} ({But not} 24... dxe3 25. Qxa7 Rd8 26. Qxe3 $14) 25. Bxd3 {
[%emt 0:01:40]} (25. Bd1) 25... Nxf3+ {[%emt 0:00:00] Black is clearly winning.
} ({Stronger than} 25... Nxd3 26. Rxc4 Qe8 27. Nc5 Nxc5 28. Rxc5 $17) 26. Kf2 {
[%emt 0:00:11]} Nxh2 {[%emt 0:02:52]} 27. Rxc4 {[%emt 0:01:51]} Qf3+ {[%emt 0:
01:48] [#] Deflection} 28. Ke1 {[%emt 0:00:00]} Qxe3+ {[%emt 0:00:22]} 29. Be2
{[%emt 0:00:19]} Rxc4 {[%emt 0:01:48][%cal Rc4c1]} 30. Qd8+ {[%emt 0:04:00]}
Bf8 {[%emt 0:00:00] ( -> ...Rc1+)} 31. bxc4 {[%emt 0:00:10]} Nxf1 {[%emt 0:01:
45]} 32. Kxf1 {[%emt 0:00:45]} Qxg3 {[%emt 0:00:27] Weighted Error Value:
White=0.81/Black=0.26 (precise)} 0-1